Cogmind - Beta 16 @@@ ROGUE MODE // 2025.10.26 @ 22:47:18 Player: Big Jerry Result: Destroyed by as-25050 with Assembled Maul Performance ------------- Evolutions (0) 0 Regions Visited (2) 400 Robots Destroyed (27) 135 Value Destroyed (641) 641 Prototype IDs (0) 0 Alien Tech Used (0) 0 Bonus (0) 0 TOTAL SCORE: 1176 Bonus ------- None Cogmind --------- Core Integrity 0/250 Matter 120/300 Energy 97/100 System Corruption 0% Temperature Cool (1) Movement Treading (160) Location -10/Mines Parts ------- > --- POWER (1) -------- (None) > --- PROPULSION (2) --- Light Treads Light Treads > --- UTILITY (2) ------ Medium Storage Unit Hacking Suite > --- WEAPON (2) ------- Autogun Grenade Launcher > --- INVENTORY (10) --- Ion Engine Light Treads Light Treads Autogun Autogun Autogun Shotgun Shotgun Peak State ------------ > --- POWER ------------ Light Ion Engine > --- PROPULSION ------- Light Treads Light Treads > --- UTILITY ---------- Medium Storage Unit Hacking Suite > --- WEAPON ----------- Autogun Shotgun > --- INVENTORY -------- Ion Engine Aluminum Leg Aluminum Leg Autogun Autogun Autogun Shotgun Shotgun Grenade Launcher [Rating: 12] Favorites ----------- Power Light Ion Engine Engine Light Ion Engine Propulsion Light Treads Treads Light Treads Utility Medium Storage Unit Device Disposable Heat Sink Storage Medium Storage Unit Hackware Hacking Suite Weapon Autogun Ballistic Gun Autogun Launcher Grenade Launcher Build | -11 -10 -10 ------- Run | Yrd Mat Min Slots Evolved . | . . . Power . | . . . Propulsion . | . . . Utility . | . . . Weapon . | . . . Parts Attached 18 | 7 9 2 Power 1 | 1 . . Engine 1 | 1 . . Core . | . . . Reactor . | . . . Propulsion 5 | 2 2 1 Treads 5 | 2 2 1 Leg . | . . . Wheel . | . . . Hover . | . . . Flight . | . . . Utility 4 | 1 3 . Device 1 | . 1 . Storage 2 | 1 1 . Processor . | . . . Hackware 1 | . 1 . Protection . | . . . Artifact . | . . . Weapon 8 | 3 4 1 Energy Gun . | . . . Energy Cannon . | . . . Ballistic Gun 6 | 3 3 . Ballistic Cannon . | . . . Launcher 2 | . 1 1 Special Weapon . | . . . Impact Weapon . | . . . Slashing Weapon . | . . . Piercing Weapon . | . . . Special Melee Weapon . | . . . Unidentified Prototypes . | . . . Parts Lost 3 | . . 3 Power 1 | . . 1 Propulsion 1 | . . 1 Utility . | . . . Weapon 1 | . . 1 Highest Loss Streak 2 | . . 2 To Critical Strikes . | . . . Average Backups 8 | 2 8 9 Power . | . 1 1 Propulsion 2 | 1 2 2 Utility . | . . . Weapon 5 | . 5 5 Tool/Special . | . . . Unused Backups 9 | . 2 7 Power 1 | . . 1 Propulsion 4 | . 2 2 Utility . | . . . Weapon 4 | . . 4 Tool/Special . | . . . Average Slot Usage (%) 98 | . 99 93 Engine 13 | . 13 8 Treads 28 | . 28 28 Device 4 | . 5 . Storage 14 | . 14 14 Hackware 8 | . 8 14 Ballistic Gun 25 | . 26 14 Launcher 2 | . 1 13 Peak Build Rating 12 | 6 12 11 Average Rating 10 | 4 11 10 On Entrance 5 | . 6 11 Avg Prop Armor Cover (%) . | . . . Naked Turns . | . . . Heaviest Build 20 | 12 20 19 Greatest Support 40 | 40 40 40 Greatest Overweight (x) . | . . . Average Overweight (x) . | . . . Largest Inventory Capacity 10 | 8 10 10 Average Capacity 9 | 7 9 10 Most Carried 10 | 4 10 10 Average Carried 8 | 2 8 9 Final Capacity 10 | 8 10 10 Final Carried 10 | 4 10 8 Class Distribution -------------------- 100% | Mutant Dominant Class ---------------- Mutant | -10/Materials Mutant | -10/Mines Resources | -11 -10 -10 ----------- Run | Yrd Mat Min Matter Collected 929 | 233 681 15 Remotely . | . . . Salvage Created 883 | . 720 163 Parts 60 | . 55 5 Haulers Intercepted 2 | . 2 . Recyclers Shooed . | . . . Parts Field Recycled . | . . . Retrieved Matter . | . . . Parts Self-Destructed . | . . . Prevented . | . . . Parts Restored . | . . . Kills | -11 -10 -10 ------- Run | Yrd Mat Min Combat Hostiles Destroyed 29 | . 13 16 Guns 15 | . 13 2 AOE 14 | . . 14 Classes Destroyed 9 | . 7 2 Worker 2 | . 2 . Builder 1 | . 1 . Hauler 2 | . 2 . Recycler 1 | . . 1 Operator 3 | . 3 . Watcher 3 | . 3 . Swarmer 2 | . 2 . Grunt 13 | . 11 2 Assembled 14 | . . 14 Best Kill Streak 15 | . 3 15 Combat Bots Only 14 | . 3 14 Max Kills in Single Turn 4 | . 2 4 Gunslinging . | . . . Exploded 4 | . . 4 Melee . | . . . Uniques/NPCs Destroyed . | . . . Combat | -11 -10 -10 -------- Run | Yrd Mat Min Hostile Shots Fired 78 | . 40 38 Missed 19 | . 11 8 Hits 59 | . 29 30 Melee 3 | . . 3 Projectile 56 | . 29 27 AOE 2 | . . 2 Damage Taken 930 | . 349 581 Core 266 | . 87 179 Absorbed by Shields . | . . . Core Remaining (%) 100 | 100 . . Volleys Fired 89 | 1 71 17 Largest 2 | 2 2 2 Hottest 53 | 40 46 53 Shots Fired 152 | 2 125 25 Gun 135 | 2 123 10 Cannon . | . . . Launcher 17 | . 2 15 Special . | . . . Kinetic 135 | 2 123 10 Thermal . | . . . Explosive 17 | . 2 15 Electromagnetic . | . . . Robot Hit Streak 8 | 2 8 5 Robot Miss Streak 4 | . 4 1 Penetration Max . | . . . Secondary Targets 1 | . 1 . Max Gunslinging Chain 1 | . 1 . Shots Hit Robots 90 | 2 80 8 Core Hits 69 | . 38 31 Critical Kills . | . . . Critical Parts Destroyed . | . . . Critical Strikes . | . . . Melee Attacks . | . . . Impact . | . . . Slashing . | . . . Piercing . | . . . Sneak Attacks . | . . . Combat Hostiles . | . . . Follow-up Attacks . | . . . Damage Inflicted 2202 | 27 1260 915 Guns 1278 | 27 1178 73 Cannons . | . . . Explosions 924 | . 82 842 Melee . | . . . Ramming . | . . . Kinetic 1278 | 27 1178 73 Thermal 30 | . . 30 Explosive 812 | . . 812 Electromagnetic 82 | . 82 . Impact . | . . . Slashing . | . . . Piercing . | . . . Highest Corruption . | . . . Average Corruption . | . . . Corruption Purged . | . . . Corruption Blocked . | . . . Overload Shots . | . . . Overflow Damage 26 | . . 26 Projectiles . | . . . Explosions 26 | . . 26 Melee . | . . . Knockbacks . | . . . Impact . | . . . Kinetic . | . . . Secondary . | . . . Self-Inflicted Damage 61 | . . 61 Shots 4 | . . 4 Rammed . | . . . Targets Rammed . | . . . Kicked . | . . . Crushed . | . . . Highest Temperature 24 | . 24 22 Average Temperature 6 | . 6 9 Received Heat Transfer 237 | . 156 81 Siege Activations . | . . . Martial Activations . | . . . Shielding Activations . | . . . Robots Disrupted . | . . . Combat Hostiles . | . . . Robots Corrupted . | . . . Combat Hostiles . | . . . Parts Fried 1 | . 1 . Impact Corruptions . | . . . Robots Melted . | . . . Combat Hostiles . | . . . Parts Melted . | . . . Heat Transferred 50 | . . 50 Parts Sabotaged . | . . . Parts Stolen . | . . . Parts Stripped . | . . . Power Chain Reactions 1 | . 1 . Alert | -11 -10 -10 ------- Run | Yrd Mat Min Maximum Alert Level . | . . . Low Security (%) 100 | 100 100 100 Level 1 . | . . . Level 2 . | . . . Level 3 . | . . . Level 4 . | . . . Level 5 . | . . . High Security . | . . . Max Security . | . . . Peak Influence 106 | . 101 106 Initial 28 | . . 28 Average 45 | . 46 65 Influence Increases 621 | . 471 150 Destroy 0b10 Robot/C 300 | . 260 40 Destroy 0b10 Robot/NC 60 | . 55 5 Destroy Leader 90 | . 80 10 Successful Hack 17 | . 17 . Disable Machine 60 | . 45 15 Destroy Structure 49 | . 14 35 Lose Combat Pursuer 45 | . . 45 Influence Decreases 543 | . 398 145 Entered New Map 45 | . . 45 Time Decay 468 | . 398 70 Lost Part 30 | . . 30 Squads Dispatched 6 | . 6 . Investigation 3 | . 3 . Extermination . | . . . Reinforcement 3 | . 3 . Assault . | . . . Garrison . | . . . Intercept . | . . . Searches Triggered . | . . . Construction Impeded . | . . . Haulers Reinforced . | . . . Active Scanning Responses . | . . . Cargo Convoy Interrupts . | . . . Stealth | -11 -10 -10 --------- Run | Yrd Mat Min Distress Signals 2 | . 2 . Communications Jammed . | . . . Distress Signals . | . . . Times Spotted 46 | . 26 20 Peak Tracking Total 8 | . 5 8 Tactical Retreats 2 | . . 2 Traps | -11 -10 -10 ------- Run | Yrd Mat Min Traps Triggered 4 | . 4 . Indirectly . | . . . Trap Hack Attempts . | . . . Triggered . | . . . Disarmed . | . . . Reprogrammed . | . . . Reused . | . . . Traps Extracted . | . . . Installed . | . . . Triggered . | . . . Machines | -11 -10 -10 ---------- Run | Yrd Mat Min Machines Disabled 4 | . 3 1 Max in Single Turn 2 | . 2 1 Machines Repaired . | . . . Machines Dismantled . | . . . Machines Sabotaged . | . . . Overloaded Fab Kills . | . . . Hacking | -11 -10 -10 --------- Run | Yrd Mat Min Machines Accessed 4 | . 4 . Terminals 4 | . 4 . Fabricators . | . . . Repair Stations . | . . . Recycling Units . | . . . Scanalyzers . | . . . Garrison Access . | . . . Total Hacks 18 | . 18 . Successful 11 | . 11 . Failed 7 | . 7 . Catastrophic . | . . . Database Lockouts . | . . . Manual . | . . . Terminals 18 | . 18 . Fabricators . | . . . Repair Stations . | . . . Recycling Units . | . . . Scanalyzers . | . . . Garrison Access . | . . . Terminal Hacks 11 | . 11 . Emergency Access Points 1 | . 1 . Alert Level 1 | . 1 . Locate Traps 3 | . 3 . Transport Status 1 | . 1 . Recall Investigation 1 | . 1 . Hauler Manifests 1 | . 1 . Zone Layout 3 | . 3 . Fabricator Hacks . | . . . Repair Station Hacks . | . . . Recycling Unit Hacks . | . . . Scanalyzer . | . . . Garrison Access Hacks . | . . . Unauthorized Hacks . | . . . Terminals . | . . . Fabricators . | . . . Repair Stations . | . . . Recycling Units . | . . . Scanalyzers . | . . . Garrison Access . | . . . Data Cores Recovered . | . . . Used . | . . . Hacking Detections 4 | . 4 . Full Trace Events 1 | . 1 . Feedback Events . | . . . Feedback Blocked . | . . . Robot Schematics Acquired . | . . . Robots Built . | . . . Authchips . | . . . Time . | . . . Total Robot Build Rating . | . . . Part Schematics Acquired . | . . . Parts Built . | . . . Authchips . | . . . Time . | . . . Total Part Build Rating . | . . . Part Studies Acquired . | . . . Parts Repaired . | . . . Time . | . . . Parts Recycled . | . . . Recycled Matter . | . . . Retrieved Matter . | . . . Retrieved Components . | . . . Parts Scanalyzed . | . . . Part Schematics Acquired . | . . . Parts Damaged . | . . . Bothacking | -11 -10 -10 ------------ Run | Yrd Mat Min Used RIF Installer . | . . . Robots Hacked . | . . . Non-combat . | . . . Combat . | . . . Robot Hacks Applied . | . . . Relay Couplers Released . | . . . Fabnet Peak Effective % . | . . . Robots Rewired . | . . . Allies Hacked . | . . . Hacks Repelled . | . . . Allies | -11 -10 -10 -------- Run | Yrd Mat Min Total Allies . | . . . Largest Group . | . . . Highest-Rated Group . | . . . Highest-Rated Ally . | . . . Total Orders . | . . . Ally Attacks . | . . . Total Damage . | . . . Kills . | . . . Allies Corrupted . | . . . Allies Melted 1 | . . 1 Intel | -11 -10 -10 ------- Run | Yrd Mat Min Active Infowar (turns) . | . . . Robot Analysis Total . | . . . Derelict Logs Recovered . | . . . Drone Launches . | . . . Drone Recoveries . | . . . Exploration | -11 -10 -10 ------------- Run | Yrd Mat Min Turns Passed 1377 | 88 1143 146 Spaces Moved 694 | 49 579 66 Core 6 | 6 . . Treads 688 | 43 579 66 Legs . | . . . Wheels . | . . . Hover . | . . . Flight . | . . . Fastest Speed 50 | 50 160 160 Average Speed 159 | 146 160 160 Slowest Speed 160 | 160 160 160 Overloaded Moves . | . . . Propulsion Burnouts . | . . . Robots Hopped . | . . . Potential Cave-ins . | . . . Cave-ins Triggered . | . . . Exploration Rate (%) 31 | 4 71 20 Regions Visited 2 Branch Regions 1 Pre-discovered Areas . | . . . Known Exits Taken . | . . . Unknown Exits Taken 2 | 1 1 . Scrap Searched . | . . . Spaces Dug . | . . . Terrain Destroyed 73 | . 16 57 Melee . | . . . Projectile . | . . . AOE 73 | . 16 57 Terrain Rammed . | . . . Walls Destroyed . | . . . Machines Disabled . | . . . Actions | -11 -10 -10 --------- Run | Yrd Mat Min Total 830 | 60 685 85 Wait 4 | . 4 . Move 692 | 48 578 66 Hop . | . . . Pick Up 14 | 4 10 . Fast Attach 10 | 6 4 . Attach 3 | . 1 2 Detach . | . . . Swap 9 | 1 8 . Drop 9 | . 9 . Fire 89 | 1 71 17 Melee . | . . . Ram . | . . . Kick . | . . . Crush . | . . . Escape Stasis . | . . . Rewire . | . . . Trap . | . . . Miscellaneous . | . . . Route ------- -11/Scrapyard -10/Materials (discovered 3 exits: [*Mat x2] / [*Min]) -10/Mines History --------- Turn | Location | Event 8 | -11/Scrapyard | Discovered new exit (range 14) 89 | -11/Scrapyard | Entered Materials 304 | -10/Materials | Build established: Mutant 594 | -10/Materials | Discovered new exit (range 7) 886 | -10/Materials | Discovered new exit (range 3) 1044 | -10/Materials | Discovered new exit (range 4) 1232 | -10/Materials | Entered Mines 1299 | -10/Mines | Assembled infested the area 1304 | -10/Mines | Assisted by a Guerilla fighting off Assembled 1355 | -10/Mines | Core integrity fell below 50% 1363 | -10/Mines | Core integrity fell below 20% 1378 | -10/Mines | Destroyed by as-25050 with Assembled Maul Last Messages --------------- The unstable cave ceiling collapses. Destroyed Asb. F-torch. as-22413 destroyed. as-00423 destroyed. Destroyed Asb. Hover Unit. Destroyed Asb. F-torch. as-92161 destroyed. The unstable cave ceiling collapses. as-78789 destroyed. The unstable cave ceiling collapses. as-64401 destroyed. Grenade Launcher destroyed. as-92855 destroyed. Lgt. Treads destroyed. as-03523 destroyed. R-06 Scavenger destroyed. The unstable cave ceiling collapses. U-05 Engineer lays Concrete. as-65079 destroyed. as-56513 destroyed. Map ----- +----------------------------------------------------+ | ?????????????????????????????????????????????????? | | ?????????????????????????????????????????????????? | | ?????????????????????????????????????????????????? | | ?????????????????????????????????????????????????? | | ?????????????????????????????????????????????????? | | ??????????????????????????##?????????????????????? | | ??????????????????????????" ?????????????????????? | | ???????????????????????##?%##????????????????????? | | ??????????????????????## # ###??????????????????? | | ?????????????????????# #??????????????????? | | ????????????????????## a# #??????????????????? | | ???????#########????# # #?##???????????????? | | ???????# #??### %# ????????????????? | | #??????# #?## #u#???????????????? | | #?###### ### a # ???????????????? | | #?# # """#? ????????????????? | | ### """#?# ?????????????????? | | """#?# * ?????????????????? | | " ## # # #?? !%! ??????????????????? | | " ### ! #######??# *= ???????????????????? | | " #?## #???????## # #???????????????????? | | #?# # #??????## % ##??????????????????? | | #?### ###?????## #??????????????????? | | ##???# ##??????# ##?????????????????? | | ##????# ######## a ###???????????????? | | #?????# ## @ #???????????????? | | ??????# #??????????????? | | ??????#### # #??????????????? | | ?????????## ######### #?????????????? | | ??????????#### ##???????## #????????????? | | ?????????????## ##?????????## #????????????? | | ??????????????######???????????? #????????????? | | ????????????????????????????????# ##????????????? | | ?????????????????????????????????###?????????????? | | ?????????????????????????????????????????????????? | | ?????????????????????????????????????????????????? | | | | | | | | | | | | | | | | | | | | | | | | | | | | | +----------------------------------------------------+ Best States ------------- Heat Dissipation 25 Coolant Potential 50 Energy Generation 10 Energy Capacity 125 Matter Stores 300 Matter Capacity 300 Sight Range 16 Terrain Scan Density 10 Evasion (%) 40 Recoil Reduction 2 Offensive Hacking 10 Item Schematics ----------------- None Robot Schematics ------------------ None Fabricated ------------ Nothing Repaired ---------- Nothing Studied --------- None Alien Tech Used ----------------- None Achievements -------------- None Challenges ------------ None Game ------ Seed BlastSiegeDisplacer Manual? 0 Play Time 00:15:48 Cumulative 38.3 hours Start 2025.10.26 @ 22:34:14 End 2025.10.26 @ 22:47:18 Sessions 1 Manual Loads 0 Difficulty Rogue Special Mode None Game No. 49 Rogue 49 Adventurer 0 Explorer 0 Win Type - Total 0 Types 0/0/0/0/0/0/0/0/0/0 Lore% 29 Gallery% 26 Achievement% 16 Wizard Run 0 Options --------- Layout 1 ASCII 0 Keyboard 0 Movement Numpad Keybinds 0 Fullscreen 1 Font 24/Swanston Map View 50x35 Zoom Use 0% Tactical HUD 0 Map Filters NONE Filters NONE Steam 1 RUN: 55261e58-63f0-4587-99f6-561f212109ae